fUSD/lending_fUSD_20250806
["ID","MTS","AMOUNT","RATE_DAILY","PERIOD"]
[377569480,1754445051453,-500.0,0.00035616,14]
[377569481,1754445051463,-500.0,0.00035616,14]
[377569482,1754445051472,-400.0,0.00035616,14]
[377569483,1754445051484,-500.0,0.00035616,14]
[377569484,1754445051494,-500.0,0.00035616,14]
[377569485,1754445051503,-500.0,0.00035616,14]
[377569486,1754445051512,-500.0,0.00035616,14]
[377569487,1754445051522,-500.0,0.00035616,14]
[377569488,1754445051532,-500.0,0.00035616,14]
[377569489,1754445051542,-500.0,0.00035616,14]
[377569490,1754445051552,-400.0,0.00035616,14]
[377569491,1754445051562,-627.19477944,0.00035616,14]
[377569492,1754445051571,-400.0,0.00035616,14]
[377569493,1754445051973,-400.0,0.00035616,14]
[377569494,1754445051983,-1272.84,0.00035616,14]
[377569495,1754445051993,-400.0,0.00035616,14]
[377569496,1754445052002,-637.27,0.00035616,14]
[377569497,1754445052012,-1611.84,0.00035616,14]
[377569498,1754445052022,-400.0,0.00035616,14]
[377569499,1754445052033,-2718.79,0.00035616,14]
[377569500,1754445052044,-1692.25,0.00035616,14]
[377569501,1754445052054,-400.0,0.00035616,14]
[377569502,1754445052064,-400.0,0.00035616,14]
[377569503,1754445052075,-1315.11,0.00035616,14]
[377569504,1754445052085,-652.68,0.00035616,14]
[377569505,1754445052095,-1591.38,0.00035616,14]
[377569506,1754445052105,-1943.43,0.00035616,14]
[377569507,1754445052114,-400.0,0.00035616,14]
[377569508,1754445052124,-400.0,0.00035616,14]
[377569509,1754445052134,-756.43,0.00035616,14]
[377569510,1754445052143,-2237.96,0.00035616,14]
[377569511,1754445052152,-400.0,0.00035616,14]
[377569512,1754445052162,-400.0,0.00035616,14]
[377569513,1754445052172,-401.29770288,0.00035616,14]
[377569514,1754445052181,-420.22,0.00035616,14]
[377569515,1754445052191,-2575.51,0.00035616,14]
[377569516,1754445052201,-400.0,0.00035616,14]
[377569517,1754445052210,-865.96,0.00035616,14]
[377569518,1754445052219,-1894.82,0.00035616,14]
[377569519,1754445052228,-819.6,0.00035616,14]
[377569520,1754445052238,-2053.25,0.00035616,14]
[377569521,1754445052248,-400.0,0.00035616,14]
[377569522,1754445052257,-400.0,0.00035616,14]
[377569523,1754445052267,-400.0,0.00035616,14]
[377569524,1754445052280,-401.17196402,0.00035616,14]
[377569525,1754445052290,-2031.47,0.00035616,14]
[377569526,1754445052300,-1871.26,0.00035616,14]
[377569527,1754445052310,-500.0,0.00035616,10]
[377569528,1754445052319,-400.0,0.00035616,14]
[377569529,1754445052328,-400.25536324,0.00035616,14]
[377569530,1754445052337,-446.72082124,0.00035616,14]
[377569531,1754445052347,-400.0,0.00035616,14]
[377569532,1754445052357,-1397.46,0.00035616,14]
[377569533,1754445052366,-400.0,0.00035616,14]
[377569534,1754445052376,-1450.07,0.00035616,14]
[377569535,1754445052385,-400.0,0.00035616,14]
[377569536,1754445052395,-441.04,0.00035616,14]
[377569537,1754445052405,-1199.57,0.00035616,14]
[377569538,1754445052414,-400.0,0.00035616,14]
[377569539,1754445052423,-400.0,0.00035616,14]
[377569540,1754445052433,-400.0,0.00035616,14]
[377569541,1754445052442,-1209.5,0.00035616,14]
[377569542,1754445052451,-400.0,0.00035616,14]
[377569543,1754445052461,-2230.94,0.00035616,14]
[377569544,1754445052470,-418.92,0.00035616,14]
[377569545,1754445052480,-400.0,0.00035616,14]
[377569546,1754445052497,-3525.98,0.00035616,14]
[377569547,1754445052510,-400.0,0.00035616,14]
[377569548,1754445052519,-400.0,0.00035616,14]
[377569549,1754445052534,-400.0,0.00035616,14]
[377569550,1754445052543,-438.34036498,0.00035616,14]
[377569551,1754445052553,-1221.92,0.00035616,14]
[377569552,1754445052563,-1752.0,0.00035616,14]
[377569553,1754445052574,-518.56,0.00035616,14]
[377569554,1754445052584,-473.14,0.00035616,14]
[377569555,1754445052594,-400.0,0.00035616,14]
[377569556,1754445052605,-1920.97,0.00035616,14]
[377569557,1754445052615,-1237.41,0.00035616,14]
[377569558,1754445052626,-526.37,0.00035616,14]
[377569559,1754445052636,-400.0,0.00035616,14]
[377569560,1754445052646,-400.0,0.00035616,14]
[377569561,1754445052656,-400.0,0.00035616,14]
[377569562,1754445052666,-927.89,0.00035616,14]
[377569563,1754445052676,-400.0,0.00035616,14]
[377569564,1754445052686,-400.0,0.00035616,14]
[377569565,1754445052696,-400.0,0.00035616,14]
[377569566,1754445052707,-400.0,0.00035616,14]
[377569567,1754445052717,-1273.79,0.00035616,14]
[377569568,1754445052727,-400.0,0.00035616,14]
[377569569,1754445052739,-400.0,0.00035616,14]
[377569570,1754445052750,-400.0,0.00035616,14]
[377569571,1754445052759,-2062.42,0.00035616,14]
[377569572,1754445052769,-2103.57,0.00035616,14]
[377569573,1754445052783,-650.32,0.00035616,14]
[377569574,1754445052793,-2044.76,0.00035616,14]
[377569575,1754445052803,-1965.21,0.00035616,14]
[377569576,1754445052814,-733.36,0.00035616,14]
[377569577,1754445052828,-2287.14,0.00035616,14]
[377569578,1754445052838,-514.18,0.00035616,14]
[377569579,1754445052848,-400.0,0.00035616,14]
[377569580,1754445052857,-1869.68,0.00035616,14]
[377569581,1754445052868,-400.0,0.00035616,14]
[377569582,1754445052878,-400.0,0.00035616,14]
[377569583,1754445052888,-402.06554391,0.00035616,14]
[377569584,1754445052899,-1998.0,0.00035616,14]
[377569585,1754445052909,-400.0,0.00035616,14]
[377569586,1754445052918,-1802.74,0.00035616,14]
[377569587,1754445052928,-400.48030599,0.00035616,14]
[377569588,1754445052938,-400.0,0.00035616,14]
[377569589,1754445052948,-403.94,0.00035616,14]
[377569590,1754445052957,-400.0,0.00035616,14]
[377569591,1754445052968,-400.0,0.00035616,14]
[377569592,1754445052978,-400.0,0.00035616,14]
[377569593,1754445052988,-522.06,0.00035616,14]
[377569594,1754445052998,-2248.73,0.00035616,14]
[377569595,1754445053009,-3124.69,0.00035616,2]
[377569596,1754445053019,-400.0,0.00035616,14]
[377569597,1754445053031,-2221.48,0.00035616,14]
[377569598,1754445053040,-1141.51,0.00035616,14]
[377569599,1754445053051,-400.84230269,0.00035616,14]
[377569600,1754445053062,-653.24,0.00035616,14]
[377569601,1754445053072,-449.07,0.00035616,14]
[377569602,1754445053082,-2996.94,0.00035616,14]
[377569603,1754445053092,-400.0,0.00035616,14]
[377569604,1754445053102,-400.0,0.00035616,14]
[377569605,1754445053111,-400.0,0.00035616,14]
[377569606,1754445053121,-2572.93,0.00035616,14]
[377569607,1754445053131,-400.0,0.00035616,14]
[377569608,1754445053142,-3089.34,0.00035616,14]
[377569609,1754445053152,-400.0,0.00035616,14]
[377569610,1754445053163,-1321.44,0.00035616,14]
[377569611,1754445053173,-400.0,0.00035616,14]
[377569612,1754445053183,-400.0,0.00035616,14]
[377569613,1754445053194,-1853.29,0.00035616,14]
[377569614,1754445053203,-554.5,0.00035616,14]
[377569615,1754445053214,-717.97,0.00035616,14]
[377569616,1754445053224,-919.64,0.00035616,14]
[377569617,1754445053234,-500.0,0.00035616,30]
[377569618,1754445053244,-2962.89,0.00035616,14]
[377569619,1754445053255,-400.0,0.00035616,14]
[377569620,1754445053267,-400.0,0.00035616,14]
[377569621,1754445053278,-500.0,0.00035616,14]
[377569622,1754445053287,-500.0,0.00035616,14]
[377569623,1754445053296,-400.0,0.00035616,14]
[377569624,1754445053306,-500.0,0.00035616,14]
[377569625,1754445053315,-500.0,0.00035616,14]
[377569626,1754445053325,-400.0,0.00035616,14]
[377569627,1754445053334,-500.0,0.00035616,14]
[377569628,1754445053344,-500.0,0.00035616,14]
[377569629,1754445053354,-500.0,0.00035616,14]
[377569630,1754445053364,-400.0,0.00035616,14]
[377569631,1754445053374,-500.0,0.00035616,14]
[377569632,1754445053383,-500.0,0.00035616,14]
[377569633,1754445053393,-400.0,0.00035616,14]
[377569634,1754445053402,-500.0,0.00035616,14]
[377569635,1754445053411,-597.42827548,0.00035616,14]
[377569636,1754445053421,-400.0,0.00035616,14]
[377569637,1754445053430,-400.0,0.00035616,14]
[377569638,1754445053439,-400.0,0.00035616,14]
[377569639,1754445053449,-1038.9,0.00035616,14]
[377569640,1754445053458,-2119.95,0.00035616,14]
[377569641,1754445053468,-1090.66,0.00035616,14]
[377569642,1754445053477,-400.0,0.00035616,14]
[377569643,1754445053487,-2324.65,0.00035616,14]
[377569644,1754445053496,-1842.57,0.00035616,14]
[377569645,1754445053506,-2324.65,0.00035616,14]
[377569646,1754445053515,-2772.54,0.00035616,14]
[377569647,1754445053524,-2324.65,0.00035616,14]
[377569648,1754445053535,-400.0,0.00035616,14]
[377569649,1754445053546,-2324.65,0.00035616,14]
[377569650,1754445053555,-1611.49,0.00035616,14]
[377569651,1754445053564,-2324.65,0.00035616,14]
[377569652,1754445053574,-400.0,0.00035616,14]
[377569653,1754445053584,-2324.65,0.00035616,14]
[377569654,1754445053593,-1806.76,0.00035616,14]
[377569655,1754445053603,-400.0,0.00035616,14]
[377569656,1754445053613,-2324.65,0.00035616,14]
[377569657,1754445053622,-1787.24,0.00035616,14]
[377569658,1754445053631,-2324.65,0.00035616,14]
[377569659,1754445053642,-619.2,0.00035616,14]
[377569660,1754445053653,-2324.65,0.00035616,14]
[377569661,1754445053665,-2102.4,0.00035616,14]
[377569662,1754445053674,-569.78,0.00035616,14]
[377569663,1754445053684,-2324.65,0.00035616,14]
[377569664,1754445053693,-2324.65,0.00035616,14]
[377569665,1754445053703,-688.5,0.00035616,14]
[377569666,1754445053712,-2324.65,0.00035616,14]
[377569667,1754445053722,-2324.65,0.00035616,14]
[377569668,1754445053732,-400.0,0.00035616,14]
[377569669,1754445053748,-2324.65,0.00035616,14]
[377569670,1754445053759,-2324.65,0.00035616,14]
[377569671,1754445053769,-2324.65,0.00035616,14]
[377569672,1754445053781,-2324.65,0.00035616,14]
[377569673,1754445053791,-2324.65,0.00035616,14]
[377569674,1754445053802,-2324.65,0.00035616,14]
[377569675,1754445053816,-2324.65,0.00035616,14]
[377569676,1754445053832,-400.0,0.00035616,14]
[377569677,1754445053842,-400.0,0.00035616,14]
[377569678,1754445053852,-2324.65,0.00035616,14]
[377569679,1754445053864,-2324.65,0.00035616,14]
[377569680,1754445053874,-2324.65,0.00035616,14]
[377569681,1754445053884,-2324.76102505,0.00035616,14]
[377569682,1754445053896,-400.0,0.00035616,14]
[377569683,1754445053907,-400.0,0.00035616,14]
[377569684,1754445053918,-400.0,0.00035616,14]
[377569685,1754445053929,-400.0,0.00035616,14]
[377569686,1754445053939,-400.0,0.00035616,14]
[377569687,1754445053948,-710.89,0.00035616,14]
[377569688,1754445053958,-481.93,0.00035616,14]
[377569689,1754445053968,-500.0,0.00035616,14]
[377569690,1754445053978,-1788.12,0.00035616,14]
[377569691,1754445053987,-400.0,0.00035616,14]
[377569692,1754445053998,-949.67,0.00035616,14]
[377569693,1754445054009,-400.0,0.00035616,14]
[377569694,1754445054019,-568.21,0.00035616,14]
[377569695,1754445054030,-498.72,0.00035616,14]
[377569696,1754445054041,-2013.03,0.00035616,14]
[377569697,1754445054051,-1824.43,0.00035616,14]
[377569698,1754445054061,-767.84,0.00035616,14]
[377569699,1754445054070,-2354.23,0.00035616,14]
[377569700,1754445054081,-1988.32,0.00035616,14]
[377569701,1754445054091,-400.0,0.00035616,14]
[377569702,1754445054100,-400.0,0.00035616,14]
[377569703,1754445054111,-480.69,0.00035616,14]
[377569704,1754445054120,-400.0,0.00035616,14]
[377569705,1754445054130,-400.0,0.00035616,14]
[377569706,1754445054140,-397.79854618,0.00035616,14]
[377569707,1754445054151,-400.0,0.00035616,14]
[377569708,1754445054160,-400.0,0.00035616,14]
[377569709,1754445054170,-400.0,0.00035616,14]
[377569710,1754445054180,-758.44,0.00035616,14]
[377569711,1754445054190,-416.99,0.00035616,14]
[377569712,1754445054200,-400.0,0.00035616,14]
[377569713,1754445054210,-400.0,0.00035616,14]
[377569714,1754445054220,-1328.89,0.00035616,14]
[377569715,1754445054230,-718.49,0.00035616,14]
[377569716,1754445054240,-400.0,0.00035616,14]
[377569717,1754445054249,-400.0,0.00035616,14]
[377569718,1754445054259,-589.54,0.00035616,14]
[377569719,1754445054269,-589.54,0.00035616,14]
[377569720,1754445054280,-589.54,0.00035616,14]
[377569721,1754445054290,-589.54,0.00035616,14]
[377569722,1754445054300,-439.78,0.00035616,14]
[377569723,1754445054310,-589.54,0.00035616,14]
[377569724,1754445054320,-400.0,0.00035616,14]
[377569725,1754445054329,-589.54,0.00035616,14]
[377569726,1754445054339,-400.0,0.00035616,14]
[377569727,1754445054348,-589.54,0.00035616,14]
[377569728,1754445054358,-589.54,0.00035616,14]
[377569729,1754445054368,-400.0,0.00035616,14]
[377569730,1754445054380,-400.0,0.00035616,14]
[377569731,1754445054391,-2988.22,0.00035616,14]
[377569732,1754445054401,-589.54,0.00035616,14]
[377569733,1754445054578,-400.0,0.00035616,14]
[377569734,1754445054588,-2203.89,0.00035616,14]
[377569735,1754445054597,-1149.15,0.00035616,14]
[377569736,1754445054606,-400.0,0.00035616,14]
[377569737,1754445054615,-589.54,0.00035616,14]
[377569738,1754445054624,-400.0,0.00035616,14]
[377569739,1754445054633,-589.54,0.00035616,14]
[377569740,1754445054643,-400.0,0.00035616,14]
[377569741,1754445054653,-589.54,0.00035616,14]
[377569742,1754445054663,-589.54,0.00035616,14]
[377569743,1754445054672,-589.54,0.00035616,14]
[377569744,1754445054681,-1480.78,0.00035616,14]
[377569745,1754445054690,-589.54,0.00035616,14]
[377569746,1754445054699,-589.54,0.00035616,14]
[377569747,1754445054708,-589.54,0.00035616,14]
[377569748,1754445054718,-589.54,0.00035616,14]
[377569749,1754445054727,-400.0,0.00035616,14]
[377569750,1754445054736,-400.0,0.00035616,14]
[377569751,1754445054745,-400.0,0.00035616,14]
[377569752,1754445054755,-589.54,0.00035616,14]
[377569753,1754445054764,-589.54,0.00035616,14]
[377569754,1754445054774,-589.54,0.00035616,14]
[377569755,1754445054784,-589.54,0.00035616,14]
[377569756,1754445054793,-589.54,0.00035616,14]
[377569757,1754445054803,-589.69777022,0.00035616,14]
[377569758,1754445054813,-400.0,0.00035616,14]
[377569759,1754445054824,-2499.37,0.00035616,14]
[377569760,1754445054834,-400.0,0.00035616,120]
[377569761,1754445054843,-547.74,0.00035616,14]
[377569762,1754445054853,-657.92,0.00035616,14]
[377569763,1754445054862,-571.97,0.00035616,14]
[377569764,1754445054872,-400.0,0.00035616,14]
[377569765,1754445054883,-400.0,0.00035616,14]
[377569766,1754445054892,-1707.26,0.00035616,14]
[377569767,1754445054903,-1895.93,0.00035616,14]
[377569768,1754445054912,-1700.42,0.00035616,14]
[377569769,1754445054921,-500.0,0.00035616,14]
[377569770,1754445054931,-1189.15,0.00035616,14]
[377569771,1754445054941,-602.43,0.00035616,14]
[377569772,1754445054951,-500.0,0.00035616,14]
[377569773,1754445054966,-500.0,0.00035616,14]
[377569774,1754445054975,-400.0,0.00035616,14]
[377569775,1754445054985,-1693.91,0.00035616,14]
[377569776,1754445054995,-500.0,0.00035616,14]
[377569777,1754445055006,-400.0,0.00035616,14]
[377569778,1754445055016,-500.0,0.00035616,14]
[377569779,1754445055026,-400.0,0.00035616,14]
[377569780,1754445055036,-500.0,0.00035616,14]
[377569781,1754445055046,-1368.61,0.00035616,14]
[377569782,1754445055055,-400.99847997,0.00035616,14]
[377569783,1754445055065,-500.0,0.00035616,14]
[377569784,1754445055074,-500.0,0.00035616,14]
[377569785,1754445055084,-500.0,0.00035616,14]
[377569786,1754445055094,-500.0,0.00035616,14]
[377569787,1754445055104,-500.0,0.00035616,14]
[377569788,1754445055114,-400.0,0.00035616,14]
[377569789,1754445055123,-500.0,0.00035616,14]
[377569790,1754445055133,-416.82,0.00035616,14]
[377569791,1754445055143,-400.0,0.00035616,14]
[377569792,1754445055152,-400.0,0.00035616,14]
[377569793,1754445055162,-500.0,0.00035616,14]
[377569794,1754445055171,-500.0,0.00035616,14]
[377569795,1754445055181,-400.0,0.00035616,14]
[377569796,1754445055190,-400.0,0.00035616,14]
[377569797,1754445055200,-717.67,0.00035616,14]
[377569798,1754445055209,-400.0,0.00035616,14]
[377569799,1754445055219,-1626.03,0.00035616,14]
[377569800,1754445055236,-2682.58,0.00035616,14]
[377569801,1754445055245,-400.0,0.00035616,14]
[377569802,1754445055254,-500.0,0.00035616,14]
[377569803,1754445055264,-636.39,0.00035616,14]
[377569804,1754445055273,-500.0,0.00035616,14]
[377569805,1754445055283,-1340.21,0.00035616,14]
[377569806,1754445055293,-769.03,0.00035616,14]
[377569807,1754445055302,-500.0,0.00035616,14]
[377569808,1754445055313,-2230.29,0.00035616,14]
[377569809,1754445055322,-1641.75,0.00035616,14]
[377569810,1754445055331,-377.94240565,0.00035616,2]
[377569811,1754445055341,-500.0,0.00035616,14]
[377569812,1754445055350,-500.0,0.00035616,14]
[377569813,1754445055360,-400.0,0.00035616,14]
[377569814,1754445055369,-500.0,0.00035616,14]
[377569815,1754445055380,-500.0,0.00035616,14]
[377569816,1754445055390,-1549.47,0.00035616,14]
[377569817,1754445055400,-500.0,0.00035616,14]
[377569818,1754445055410,-500.0,0.00035616,14]
[377569819,1754445055419,-500.0,0.00035616,14]
[377569820,1754445055429,-358.04407193,0.00035616,14]
[377569821,1754445055439,-400.0,0.00035616,14]
[377569822,1754445055449,-500.0,0.00035616,14]
[377569823,1754445055459,-503.22970295,0.00035616,14]
[377569824,1754445055470,-500.0,0.00035616,14]
[377569825,1754445055479,-400.0,0.00035616,14]
[377569826,1754445055491,-596.98626433,0.00035616,14]
[377569827,1754445055501,-2884.4,0.00035616,14]
[377569828,1754445055511,-155.72676078,0.00035616,14]
[377569829,1754445055520,-2077.85,0.00035616,14]
[377569830,1754445055530,-400.0,0.00035616,14]
[377569831,1754445055540,-3366.84,0.00035616,14]
[377569832,1754445055549,-400.0,0.00035616,14]
[377569833,1754445055559,-641.86,0.00035616,14]
[377569834,1754445055569,-1990.46,0.00035616,14]
[377569835,1754445055579,-400.0,0.00035616,14]
[377569836,1754445055588,-400.0,0.00035616,14]
[377569837,1754445055597,-518.43,0.00035616,14]
[377569838,1754445055607,-2093.1,0.00035616,14]
[377569839,1754445055616,-400.0,0.00035616,14]
[377569840,1754445055626,-400.0,0.00035616,14]
[377569841,1754445055635,-439.51,0.00035616,14]
[377569842,1754445055644,-1193.12,0.00035616,14]
[377569843,1754445055654,-463.8,0.00035616,14]
[377569844,1754445055665,-1513.27,0.00035616,14]
[377569845,1754445055674,-2123.08,0.00035616,14]
[377569846,1754445055683,-400.0,0.00035616,14]
[377569847,1754445055693,-601.08,0.00035616,14]
[377569848,1754445055702,-400.0,0.00035616,14]
[377569849,1754445055711,-1083.21,0.00035616,14]
[377569850,1754445055723,-423.39,0.00035616,14]
[377569851,1754445055732,-522.05640672,0.00035616,14]
[377569852,1754445055743,-400.0,0.00035616,14]
[377569853,1754445055753,-400.0,0.00035616,14]
[377569854,1754445055763,-2286.88,0.00035616,14]
[377569855,1754445055773,-400.0,0.00035616,14]
[377569856,1754445055784,-905.59,0.00035616,14]
[377569857,1754445055793,-434.02,0.00035616,14]
[377569858,1754445055803,-400.0,0.00035616,14]
[377569859,1754445055812,-400.0,0.00035616,14]
[377569860,1754445055824,-400.0,0.00035616,14]
[377569861,1754445055834,-2629.25,0.00035616,14]
[377569862,1754445055844,-400.0,0.00035616,14]
[377569863,1754445055853,-1104.88,0.00035616,14]
[377569864,1754445055863,-400.0,0.00035616,14]
[377569865,1754445055872,-479.99,0.00035616,14]
[377569866,1754445055883,-847.31,0.00035616,14]
[377569867,1754445055895,-2002.8,0.00035616,14]
[377569868,1754445055905,-2067.35,0.00035616,14]
[377569869,1754445055917,-71290.36,0.00035616,14]
[377569870,1754445055926,-400.0,0.00035616,14]
[377569871,1754445055936,-3017.99,0.00035616,14]
[377569872,1754445055946,-1245.68,0.00035616,14]
[377569873,1754445055955,-590.54,0.00035616,14]
[377569874,1754445055965,-400.0,0.00035616,14]
[377569875,1754445055975,-604.63,0.00035616,14]
[377569876,1754445055985,-933.36,0.00035616,14]
[377569877,1754445055995,-447.51,0.00035616,14]
[377569878,1754445056005,-673.51,0.00035616,14]
[377569879,1754445056014,-1652.1,0.00035616,14]
[377569880,1754445056024,-400.0,0.00035616,14]
[377569881,1754445056034,-654.96,0.00035616,14]
[377569882,1754445056043,-400.0,0.00035616,14]
[377569883,1754445056054,-1875.41,0.00035616,14]
[377569884,1754445056063,-2830.73,0.00035616,14]
[377569885,1754445056073,-403.19223395,0.00035616,14]
[377569886,1754445056083,-400.0,0.00035616,14]
[377569887,1754445056093,-546.92,0.00035616,14]
[377569888,1754445056103,-216.45870514,0.00035616,14]
[377569889,1754445056112,-848.25,0.00035616,14]
[377569890,1754445056122,-1724.16,0.00035616,14]
[377569891,1754445056135,-2789.82,0.00035616,14]
[377569892,1754445056145,-1918.37,0.00035616,14]
[377569893,1754445056154,-400.0,0.00035616,14]
[377569894,1754445056165,-1784.3,0.00035616,14]
[377569895,1754445056177,-1545.14,0.00035616,14]
[377569896,1754445056187,-1081.98,0.00035616,14]
[377569897,1754445056197,-2023.55,0.00035616,14]
[377569898,1754445056212,-1648.33,0.00035616,14]
[377569899,1754445056229,-500.0,0.00035616,10]
[377569900,1754445056238,-1821.93,0.00035616,14]
[377569901,1754445056247,-3617.37,0.00035616,14]
[377569902,1754445056260,-2306.61,0.00035616,14]
[377569903,1754445056270,-400.0,0.00035616,14]
[377569904,1754445056280,-1041.11,0.00035616,14]
[377569905,1754445056290,-2855.56,0.00035616,14]
[377569906,1754445056300,-400.0,0.00035616,14]
[377569907,1754445056310,-493.49,0.00035616,14]
[377569908,1754445056320,-1811.94,0.00035616,14]
[377569909,1754445056330,-400.0,0.00035616,14]
[377569910,1754445056339,-400.0,0.00035616,14]
[377569911,1754445056350,-400.0,0.00035616,14]
[377569912,1754445056360,-400.0,0.00035616,14]
[377569913,1754445056370,-436.71,0.00035616,14]
[377569914,1754445056380,-400.0,0.00035616,14]
[377569915,1754445056389,-1187.63,0.00035616,14]
[377569916,1754445056399,-3830.15,0.00035616,14]
[377569917,1754445056410,-762.8,0.00035616,14]
[377569918,1754445056420,-400.0,0.00035616,14]
[377569919,1754445056429,-416.71,0.00035616,14]
[377569920,1754445056439,-794.08,0.00035616,14]
[377569921,1754445056450,-2613.19,0.00035616,14]
[377569922,1754445056460,-2255.8,0.00035616,14]
[377569923,1754445056469,-449.21513889,0.00035616,14]
[377569924,1754445056479,-400.0,0.00035616,14]
[377569925,1754445056488,-1160.89,0.00035616,14]
[377569926,1754445056497,-2221.46,0.00035616,14]
[377569927,1754445056506,-400.0,0.00035616,14]
[377569928,1754445056515,-513.53,0.00035616,14]
[377569929,1754445056524,-400.0,0.00035616,14]
[377569930,1754445056538,-400.0,0.00035616,14]
[377569931,1754445056547,-400.33906014,0.00035616,14]
[377569932,1754445056557,-400.0,0.00035616,14]
[377569933,1754445056567,-781.28,0.00035616,14]
[377569934,1754445056577,-400.0,0.00035616,14]
[377569935,1754445056587,-400.0,0.00035616,14]
[377569936,1754445056596,-936.65,0.00035616,14]
[377569937,1754445056606,-612.34,0.00035616,14]
[377569938,1754445056615,-1748.09,0.00035616,14]
[377569939,1754445056624,-400.0,0.00035616,14]
[377569940,1754445056634,-2655.03,0.00035616,14]
[377569941,1754445056643,-400.0,0.00035616,14]
[377569942,1754445056653,-831.4,0.00035616,14]
[377569943,1754445056663,-1644.91,0.00035616,14]
[377569944,1754445056672,-506.01,0.00035616,14]
[377569945,1754445056682,-400.0,0.00035616,14]
[377569946,1754445056691,-2008.93,0.00035616,14]
[377569947,1754445056701,-400.0,0.00035616,14]
[377569948,1754445056710,-953.45,0.00035616,14]
[377569949,1754445056720,-648.56,0.00035616,14]
[377569950,1754445056730,-400.0,0.00035616,14]
[377569951,1754445056740,-2625.94,0.00035616,14]
[377569952,1754445056749,-400.0,0.00035616,14]
[377569953,1754445056758,-400.0,0.00035616,14]
[377569954,1754445056768,-973.51,0.00035616,14]
[377569955,1754445056778,-400.0,0.00035616,14]
[377569956,1754445056788,-400.0,0.00035616,2]
[377569957,1754445056799,-2742.82,0.00035616,14]
[377569958,1754445056809,-1508.84,0.00035616,14]
[377569959,1754445056820,-1000.0,0.00035616,30]
[377569960,1754445056832,-1416.11,0.00035616,14]
[377569961,1754445056841,-796.41,0.00035616,14]
[377569962,1754445056851,-302.98969637,0.00035616,14]
[377569963,1754445056861,-536.89721597,0.00035616,14]
[377569964,1754445056871,-400.0,0.00035616,14]
[377569965,1754445056881,-435.03,0.00035616,14]
[377569966,1754445056890,-912.38,0.00035616,14]
[377569967,1754445056901,-400.0,0.00035616,14]
[377569968,1754445056911,-1688.61,0.00035616,14]
[377569969,1754445056920,-400.0,0.00035616,14]
[377569970,1754445056929,-406.24,0.00035616,14]
[377569971,1754445056939,-1276.5,0.00035616,14]
[377569972,1754445056949,-1930.39,0.00035616,14]
[377569973,1754445056958,-3362.96,0.00035616,14]
[377569974,1754445056968,-400.0,0.00035616,14]
[377569975,1754445056977,-400.0,0.00035616,14]
[377569976,1754445056987,-1533.65,0.00035616,14]
[377569977,1754445056996,-1233.26,0.00035616,14]
[377569978,1754445057006,-974.88,0.00035616,14]
[377569979,1754445057016,-400.0,0.00035616,14]